fUST/lending_fUST_20250206
["ID","MTS","AMOUNT","RATE_DAILY","PERIOD"]
[351786473,1738787459982,-854.89,0.00014109,2]
[351786474,1738787459991,-722.62,0.00014109,2]
[351786475,1738787460000,-500.0,0.00014109,2]
[351786476,1738787460010,-528.05,0.00014109,2]
[351786477,1738787460020,-608.04,0.00014109,2]
[351786478,1738787460029,-1070.33,0.00014109,2]
[351786479,1738787460039,-1078.15,0.00014109,2]
[351786480,1738787460050,-966.15,0.00014109,2]
[351786481,1738787460059,-2468.07,0.00014109,2]
[351786482,1738787460070,-500.0,0.00014109,2]
[351786483,1738787460083,-500.0,0.00014109,2]
[351786484,1738787460094,-500.0,0.00014109,2]
[351786485,1738787460104,-1161.57,0.00014109,2]
[351786486,1738787460114,-1978.16,0.00014109,2]
[351786487,1738787460125,-500.0,0.00014109,2]
[351786488,1738787460134,-868.59,0.00014109,2]
[351786489,1738787460144,-500.0,0.00014109,2]
[351786490,1738787460153,-625.35916695,0.00014109,2]
[351786491,1738787460163,-500.0,0.00014109,2]
[351786492,1738787460173,-4765.96,0.00014109,2]
[351786493,1738787460183,-500.0,0.00014109,2]
[351786494,1738787460193,-500.0,0.00014109,2]
[351786495,1738787460202,-500.0,0.00014109,2]
[351786496,1738787460213,-551.5,0.00014109,2]
[351786497,1738787460223,-500.0,0.00014109,2]
[351786498,1738787460233,-500.0,0.00014109,2]
[351786499,1738787460243,-292.89185279,0.00014109,2]
[351786500,1738787460252,-500.0,0.00014109,2]
[351786501,1738787460262,-500.0,0.00014109,2]
[351786502,1738787460271,-500.0,0.00014109,2]
[351786503,1738787460280,-500.0,0.00014109,2]
[351786504,1738787460289,-500.0,0.00014109,2]
[351786505,1738787460396,-1234.03,0.00014109,2]
[351786506,1738787460405,-500.0,0.00014109,2]
[351786507,1738787460415,-500.0,0.00014109,2]
[351786508,1738787460424,-500.0,0.00014109,2]
[351786509,1738787460433,-36218.37,0.00014109,2]
[351786510,1738787460443,-1584.42,0.00014109,2]
[351786511,1738787460452,-5530.87,0.00014109,2]
[351786512,1738787460462,-510.7325318,0.00014109,2]
[351786513,1738787460472,-837.35,0.00014109,2]
[351786514,1738787460481,-580.98,0.00014109,2]
[351786515,1738787460490,-500.0,0.00014109,2]
[351786516,1738787460500,-500.0,0.00014109,2]
[351786517,1738787460509,-500.0,0.00014109,2]
[351786518,1738787460519,-3387.68,0.00014109,2]
[351786519,1738787460532,-556.04,0.00014109,2]
[351786520,1738787460541,-500.0,0.00014109,2]
[351786521,1738787460550,-500.0,0.00014109,2]
[351786522,1738787460560,-4526.29,0.00014109,2]
[351786523,1738787460571,-500.0,0.00014109,2]
[351786524,1738787460580,-689.78,0.00014109,2]
[351786525,1738787460590,-1120.69,0.00014109,2]
[351786526,1738787460600,-721.69,0.00014109,2]
[351786527,1738787460610,-195.9303006,0.00014109,2]
[351786528,1738787460619,-761.99,0.00014109,2]
[351786529,1738787460629,-500.0,0.00014109,2]
[351786530,1738787460638,-725.8,0.00014109,2]
[351786531,1738787460648,-500.0,0.00014109,2]
[351786532,1738787460658,-500.0,0.00014109,2]
[351786533,1738787460668,-1127.63,0.00014109,2]
[351786534,1738787460678,-500.0,0.00014109,2]
[351786535,1738787460688,-500.0,0.00014109,2]
[351786536,1738787460698,-500.0,0.00014109,2]
[351786537,1738787460707,-500.0,0.00014109,2]
[351786538,1738787460717,-585.53,0.00014109,2]
[351786539,1738787460727,-478.48967964,0.00014109,2]
[351786540,1738787460737,-2927.42,0.00014109,2]
[351786541,1738787460747,-500.0,0.00014109,2]
[351786542,1738787460756,-500.0,0.00014109,2]
[351786543,1738787460765,-500.0,0.00014109,2]
[351786544,1738787460775,-500.0,0.00014109,2]
[351786545,1738787460784,-989.99,0.00014109,2]
[351786546,1738787460795,-627.61,0.00014109,2]
[351786547,1738787460807,-500.0,0.00014109,2]
[351786548,1738787460817,-270.80088978,0.00014109,2]
[351786549,1738787460827,-500.0,0.00014109,2]
[351786550,1738787460837,-770.96,0.00014109,2]
[351786551,1738787460846,-7616.81,0.00014109,2]
[351786552,1738787460856,-611.65,0.00014109,2]
[351786553,1738787460865,-500.0,0.00014109,2]
[351786554,1738787460875,-3152.82,0.00014109,2]
[351786555,1738787460884,-511.87366295,0.00014109,2]
[351786556,1738787460894,-709.08,0.00014109,2]
[351786557,1738787460904,-699.54,0.00014109,2]
[351786558,1738787460914,-500.0,0.00014109,2]
[351786559,1738787460924,-1000.0,0.00014109,2]
[351786560,1738787460933,-500.0,0.00014109,2]
[351786561,1738787460942,-500.0,0.00014109,2]
[351786562,1738787460952,-2752.12,0.00014109,2]
[351786563,1738787460961,-2051.75,0.00014109,2]
[351786564,1738787460970,-540.35,0.00014109,2]
[351786565,1738787460980,-1657.44,0.00014109,2]
[351786566,1738787460989,-728.64,0.00014109,2]
[351786567,1738787460999,-638.6,0.00014109,2]
[351786568,1738787461008,-500.0,0.00014109,2]
[351786569,1738787461018,-500.0,0.00014109,2]
[351786570,1738787461029,-577.35,0.00014109,2]
[351786571,1738787461039,-3817.1,0.00014109,2]
[351786572,1738787461049,-500.0,0.00014109,2]
[351786573,1738787461058,-1710.33,0.00014109,2]
[351786574,1738787461067,-151.0,0.00014109,2]
[351786575,1738787461078,-500.0,0.00014109,2]
[351786576,1738787461087,-151.0,0.00014109,2]
[351786577,1738787461097,-500.0,0.00014109,2]
[351786578,1738787461106,-500.0,0.00014109,2]
[351786579,1738787461119,-500.0,0.00014109,2]
[351786580,1738787461140,-890.85,0.00014109,2]
[351786581,1738787461158,-500.0,0.00014109,2]
[351786582,1738787461177,-866.21,0.00014109,2]
[351786583,1738787461198,-848.41,0.00014109,2]
[351786584,1738787461218,-500.0,0.00014109,2]
[351786585,1738787461236,-500.0,0.00014109,2]
[351786586,1738787461254,-500.0,0.00014109,2]
[351786587,1738787461268,-500.0,0.00014109,2]
[351786588,1738787461287,-581.56,0.00014109,2]
[351786589,1738787461306,-500.0,0.00014109,2]
[351786590,1738787461324,-500.0,0.00014109,2]
[351786591,1738787461339,-5213.56,0.00014109,2]
[351786592,1738787461357,-568.78,0.00014109,2]
[351786593,1738787461372,-1657.6,0.00014109,2]
[351786594,1738787461387,-500.0,0.00014109,2]
[351786595,1738787461401,-510.1295938,0.00014109,2]
[351786596,1738787461415,-537.95,0.00014109,2]
[351786597,1738787461430,-500.0,0.00014109,2]
[351786598,1738787461444,-1180.41,0.00014109,2]
[351786599,1738787461459,-2950.62,0.00014109,2]
[351786600,1738787461474,-8672.5,0.00014109,2]
[351786601,1738787461489,-38079.26,0.00014109,2]
[351786602,1738787461505,-516.52,0.00014109,2]
[351786603,1738787461520,-188.0,0.00014109,2]
[351786604,1738787461537,-500.0,0.00014109,2]
[351786605,1738787461552,-1419.9,0.00014109,2]
[351786606,1738787461567,-151.0,0.00014109,2]
[351786607,1738787461584,-151.0,0.00014109,2]
[351786608,1738787461600,-151.0,0.00014109,2]
[351786609,1738787461616,-500.0,0.00014109,2]
[351786610,1738787461632,-1029.74,0.00014109,2]
[351786611,1738787461645,-2445.0,0.00014109,2]
[351786612,1738787461661,-500.0,0.00014109,2]
[351786613,1738787461676,-723.41,0.00014109,2]
[351786614,1738787461691,-3299.81,0.00014109,2]
[351786615,1738787461707,-2867.16,0.00014109,2]
[351786616,1738787461721,-500.0,0.00014109,2]
[351786617,1738787461736,-500.0,0.00014109,2]
[351786618,1738787461752,-500.0,0.00014109,2]
[351786619,1738787461768,-500.0,0.00014109,2]
[351786620,1738787461782,-13406.5,0.00014109,2]
[351786621,1738787461797,-1144.73,0.00014109,2]
[351786622,1738787461811,-500.0,0.00014109,2]
[351786623,1738787461825,-500.0,0.00014109,2]
[351786624,1738787461839,-500.0,0.00014109,2]
[351786625,1738787461853,-966.04,0.00014109,2]
[351786626,1738787461867,-500.0,0.00014109,2]
[351786627,1738787461882,-500.0,0.00014109,2]
[351786628,1738787461896,-500.0,0.00014109,2]
[351786629,1738787461911,-500.0,0.00014109,2]
[351786630,1738787461926,-1610.84,0.00014109,2]
[351786631,1738787461940,-500.0,0.00014109,2]
[351786632,1738787461951,-1683.71,0.00014109,2]
[351786633,1738787461962,-500.0,0.00014109,2]
[351786634,1738787461972,-3919.03,0.00014109,2]
[351786635,1738787461981,-500.0,0.00014109,2]
[351786636,1738787461992,-560.09,0.00014109,2]
[351786637,1738787462001,-1063.17,0.00014109,2]
[351786638,1738787462011,-1223.14,0.00014109,2]
[351786639,1738787462021,-500.0,0.00014109,2]
[351786640,1738787462031,-500.0,0.00014109,2]
[351786641,1738787462040,-2800.15,0.00014109,2]
[351786642,1738787462050,-968.84,0.00014109,2]
[351786643,1738787462060,-6749.66,0.00014109,2]
[351786644,1738787462069,-1182.99,0.00014109,2]
[351786645,1738787462080,-1292.34,0.00014109,2]
[351786646,1738787462091,-500.0,0.00014109,2]
[351786647,1738787462101,-7003.11,0.00014109,2]
[351786648,1738787462111,-500.0,0.00014109,2]
[351786649,1738787462120,-500.0,0.00014109,2]
[351786650,1738787462130,-474.45704257,0.00014109,2]
[351786651,1738787462140,-576.77,0.00014109,2]
[351786652,1738787462149,-500.0,0.00014109,2]
[351786653,1738787462406,-8170.73,0.00014109,2]
[351786654,1738787462428,-12661.45,0.00014109,2]
[351786655,1738787462450,-500.0,0.00014109,2]
[351786656,1738787462460,-5301.82,0.00014109,2]
[351786657,1738787462469,-500.0,0.00014109,2]
[351786658,1738787462479,-500.0,0.00014109,2]
[351786659,1738787462488,-1115.94,0.00014109,2]
[351786660,1738787462497,-644.58,0.00014109,2]
[351786661,1738787462507,-675.98,0.00014109,2]
[351786662,1738787462516,-500.0,0.00014109,2]
[351786663,1738787462529,-517.62,0.00014109,2]
[351786664,1738787462538,-500.0,0.00014109,2]
[351786665,1738787462548,-181.18985503,0.00014109,2]
[351786666,1738787462557,-2066.59,0.00014109,2]
[351786667,1738787462567,-595.55,0.00014109,2]
[351786668,1738787462578,-644.84140235,0.00014109,2]
[351786669,1738787462587,-500.0,0.00014109,2]
[351786670,1738787462598,-500.0,0.00014109,2]
[351786671,1738787462608,-500.0,0.00014109,2]
[351786672,1738787462619,-650.5,0.00014109,2]
[351786673,1738787462628,-1008.57,0.00014109,2]
[351786674,1738787462637,-535.13,0.00014109,2]
[351786675,1738787462647,-500.0,0.00014109,2]
[351786676,1738787462656,-500.0,0.00014109,2]
[351786677,1738787462665,-2804.37,0.00014109,2]
[351786678,1738787462674,-968.02,0.00014109,2]
[351786679,1738787462684,-500.0,0.00014109,2]
[351786680,1738787462694,-3059.4,0.00014109,2]
[351786681,1738787462704,-2222.96912924,0.00014109,2]
[351786682,1738787751002,315.685102,0.00020423,120]
[351786684,1738788021394,3760.0,0.00010001,2]
[351786702,1738788632395,-1494.1663301,0.00012697,2]
[351786703,1738788632405,-710.39560899,0.00013424,2]
[351786763,1738788638513,-35.23739101,0.00013424,2]
[351786765,1738788638523,-179.74075548,0.00013424,2]
[351786767,1738788638533,-300.0,0.00013696,2]
[351786769,1738788638543,-153.45936254,0.00013697,2]
[351786771,1738788638552,-500.0,0.00013697,2]
[351786773,1738788638562,-501.22080055,0.00013697,2]
[351786775,1738788638571,-500.0,0.00013697,2]
[351786777,1738788638581,-227.09703692,0.00013697,2]
[351786779,1738788638590,-500.0,0.00013698,2]
[351786781,1738788638600,-436.66818008,0.00013698,2]
[351786783,1738788638610,-500.0,0.00013698,2]
[351786785,1738788638619,-500.0,0.00013698,2]
[351786787,1738788638629,-241.43315467,0.00013698,2]
[351786789,1738788638638,-500.0,0.00013698,2]
[351786790,1738788638648,-500.0,0.00013698,2]
[351786791,1738788638657,-500.0,0.00013698,2]
[351786792,1738788638666,-500.0,0.00013698,2]
[351786793,1738788638676,-500.0,0.00013698,2]
[351786794,1738788638685,-500.0,0.00013698,2]
[351786795,1738788638695,-390.21303221,0.00013698,2]
[351786796,1738788638707,-858.10696779,0.00013698,2]
[351786797,1738788638717,-610.92,0.00013698,2]
[351786798,1738788638727,-539.93,0.00013698,2]
[351786799,1738788638740,-500.0,0.00013698,2]
[351786800,1738788638750,-500.0,0.00013698,2]
[351786801,1738788638760,-500.0,0.00013698,2]
[351786802,1738788638769,-500.0,0.00013698,2]
[351786803,1738788638779,-500.0,0.00013698,2]
[351786804,1738788638788,-362.12867634,0.00013698,2]
[351786805,1738788638800,-137.87132366,0.00013698,2]
[351786806,1738788638810,-500.0,0.00013698,2]
[351786807,1738788638819,-500.0,0.00013698,2]
[351786827,1738788639025,-721.96,0.00013698,2]
[351786829,1738788639035,-500.0,0.00013698,2]
[351786831,1738788639045,-502.46518186,0.00013698,2]
[351786832,1738788639054,-500.0,0.00013698,2]
[351786835,1738788639064,-500.0,0.00013698,2]
[351786836,1738788639075,-500.0,0.00013698,2]
[351786838,1738788639084,-496.71519448,0.00013698,2]
[351786841,1738788639096,-3.28480552,0.00013698,2]
[351786843,1738788639106,-500.0,0.00013698,2]
[351786845,1738788639115,-500.0,0.00013698,2]
[351786847,1738788639125,-500.0,0.00013698,2]
[351786849,1738788639135,-500.0,0.00013698,2]
[351786851,1738788639145,-500.0,0.00013698,2]
[351786853,1738788639154,-500.0,0.00013698,2]
[351786855,1738788639163,-500.0,0.00013698,2]
[351786857,1738788639173,-536.76494534,0.00013698,2]
[351786859,1738788639182,-500.0,0.00013698,2]
[351786861,1738788639191,-500.0,0.00013698,2]
[351786863,1738788639201,-502.3482059,0.00013698,2]
[351786865,1738788639211,-500.0,0.00013698,2]
[351786867,1738788639220,-503.97,0.00013698,2]
[351786869,1738788639230,-635.18,0.00013698,2]
[351786871,1738788639242,-327.86889593,0.00013698,2]
[351786873,1738788639252,-500.0,0.00013698,2]
[351786875,1738788639262,-500.0,0.00013698,2]
[351786877,1738788639271,-500.0,0.00013698,2]
[351786879,1738788639281,-500.0,0.00013698,2]
[351786881,1738788639291,-500.0,0.00013698,2]
[351786883,1738788639300,-500.0,0.00013698,2]
[351786885,1738788639311,-500.0,0.00013698,2]
[351786887,1738788639320,-500.0,0.00013698,2]
[351786889,1738788639329,-500.0,0.00013698,2]
[351786891,1738788639338,-500.0,0.00013698,2]
[351786893,1738788639348,-500.0,0.00013698,2]
[351786895,1738788639358,-590.19,0.00013698,2]
[351786897,1738788639367,-500.0,0.00013698,2]
[351786899,1738788639377,-500.0,0.00013698,2]
[351786901,1738788639386,-500.0,0.00013698,2]
[351786903,1738788639396,-500.0,0.00013698,2]
[351786905,1738788639406,-500.0,0.00013698,2]
[351786907,1738788639415,-500.0,0.00013698,2]
[351786909,1738788639425,-500.0,0.00013698,2]
[351786911,1738788639434,-500.0,0.00013698,2]
[351786913,1738788639443,-500.0,0.00013698,2]
[351786915,1738788639453,-500.0,0.00013698,2]
[351786917,1738788639463,-500.0,0.00013698,2]
[351786919,1738788639472,-783.46,0.00013698,2]
[351786921,1738788639482,-500.0,0.00013698,2]
[351786923,1738788639494,-500.0,0.00013698,2]
[351786925,1738788639504,-500.0,0.00013698,2]
[351786927,1738788639513,-500.0,0.00013698,2]
[351786929,1738788639523,-500.0,0.00013698,2]
[351786931,1738788639533,-502.46918374,0.00013698,2]
[351786933,1738788639543,-1442.63,0.00013698,2]
[351786935,1738788639553,-500.0,0.00013698,2]
[351786937,1738788639563,-3449.98,0.00013698,2]
[351786939,1738788639572,-505.51740772,0.00013698,2]
[351786941,1738788639582,-500.0,0.00013698,2]
[351786943,1738788639591,-500.0,0.00013698,2]
[351786945,1738788639601,-768.87,0.00013698,2]
[351786947,1738788639611,-513.22687379,0.00013698,2]
[351786949,1738788639620,-1091.08,0.00013698,2]
[351786951,1738788639630,-500.0,0.00013698,2]
[351786953,1738788639640,-500.0,0.00013698,2]
[351786955,1738788639648,-500.0,0.00013698,2]
[351786957,1738788639658,-500.0,0.00013698,2]
[351786959,1738788639667,-500.0,0.00013698,2]
[351786961,1738788639677,-500.0,0.00013698,2]
[351786963,1738788639686,-500.0,0.00013698,2]
[351786965,1738788639695,-500.0,0.00013698,2]
[351786968,1738788639704,-500.0,0.00013698,2]
[351786971,1738788639714,-500.0,0.00013698,2]
[351786973,1738788639724,-502.51161419,0.00013698,2]
[351786976,1738788639734,-529.19,0.00013698,2]
[351786979,1738788639744,-516.87827575,0.00013698,2]
[351786982,1738788639753,-500.0,0.00013698,2]
[351786985,1738788639762,-500.0,0.00013698,2]
[351786988,1738788639772,-500.0,0.00013698,2]
[351786990,1738788639781,-1100.61,0.00013698,2]
[351786992,1738788639790,-500.0,0.00013698,2]
[351786997,1738788639800,-500.0,0.00013698,2]
[351786999,1738788639809,-500.0,0.00013698,2]
[351787001,1738788639818,-500.0,0.00013698,2]
[351787003,1738788639827,-201.12197893,0.00013698,2]
[351787004,1738788639836,-502.53341103,0.00013698,2]
[351787006,1738788639845,-500.0,0.00013698,2]
[351787008,1738788639855,-500.0,0.00013698,2]
[351787011,1738788639864,-500.0,0.00013698,2]
[351787012,1738788639873,-500.0,0.00013698,2]
[351787014,1738788639883,-1241.32,0.00013698,2]
[351787016,1738788639894,-500.0,0.00013698,2]
[351787018,1738788639907,-500.0,0.00013698,2]
[351787021,1738788639916,-500.0,0.00013698,2]
[351787023,1738788639927,-500.0,0.00013698,2]
[351787024,1738788639937,-933.09,0.00013698,2]
[351787027,1738788639947,-500.0,0.00013698,2]
[351787029,1738788639957,-500.0,0.00013698,2]
[351787031,1738788639966,-500.0,0.00013698,2]
[351787033,1738788639978,-743.99,0.00013698,2]
[351787035,1738788639988,-500.0,0.00013698,2]
[351787037,1738788639998,-503.39,0.00013698,2]
[351787039,1738788640007,-545.04,0.00013698,2]
[351787041,1738788640016,-500.0,0.00013698,2]
[351787043,1738788640026,-753.51,0.00013698,2]
[351787045,1738788640037,-568.84,0.00013698,2]
[351787046,1738788640046,-500.0,0.00013698,2]
[351787048,1738788640056,-500.0,0.00013698,2]
[351787051,1738788640066,-500.0,0.00013698,2]
[351787053,1738788640075,-500.0,0.00013698,2]
[351787055,1738788640084,-500.0,0.00013698,2]
[351787056,1738788640094,-500.0,0.00013698,2]
[351787059,1738788640104,-500.0,0.00013698,2]
[351787061,1738788640113,-500.0,0.00013698,2]
[351787062,1738788640123,-500.0,0.00013698,2]
[351787064,1738788640133,-2330.51,0.00013698,2]
[351787066,1738788640143,-624.39,0.00013698,2]
[351787068,1738788640152,-1682.56,0.00013698,2]
[351787070,1738788640163,-500.0,0.00013698,2]
[351787073,1738788640172,-500.0,0.00013698,2]
[351787074,1738788640182,-825.52,0.00013698,2]
[351787077,1738788640191,-500.0,0.00013698,2]
[351787079,1738788640202,-500.0,0.00013698,2]
[351787080,1738788640211,-599.04,0.00013698,2]
[351787082,1738788640220,-500.0,0.00013698,2]
[351787084,1738788640230,-500.0,0.00013698,2]
[351787087,1738788640242,-500.0,0.00013698,2]
[351787088,1738788640253,-500.0,0.00013698,2]
[351787091,1738788640263,-1815.68,0.00013698,2]
[351787093,1738788640273,-500.0,0.00013698,2]
[351787094,1738788640282,-798.36,0.00013698,2]
[351787096,1738788640292,-986.67,0.00013698,2]
[351787099,1738788640301,-500.0,0.00013698,2]
[351787101,1738788640311,-500.0,0.00013698,2]
[351787103,1738788640320,-500.0,0.00013698,2]
[351787104,1738788640329,-341.55286585,0.00013698,2]
[351787106,1738788640339,-500.0,0.00013698,2]
[351787109,1738788640349,-575.3,0.00013698,2]
[351787111,1738788640358,-500.0,0.00013698,2]
[351787113,1738788640368,-584.16711782,0.00013698,2]
[351787115,1738788640377,-500.0,0.00013698,2]
[351787117,1738788640387,-2243.47,0.00013698,2]
[351787119,1738788640397,-500.0,0.00013698,2]
[351787121,1738788640407,-624.42513372,0.00013698,2]
[351787123,1738788640418,-500.0,0.00013698,2]
[351787125,1738788640428,-500.0,0.00013698,2]
[351787127,1738788640437,-408.81377868,0.00013698,2]
[351787129,1738788640447,-505.61923189,0.00013698,2]
[351787131,1738788640456,-500.0,0.00013698,2]
[351787133,1738788640467,-794.02,0.00013698,2]
[351787135,1738788640477,-500.0,0.00013698,2]
[351787137,1738788640487,-500.0,0.00013698,2]
[351787139,1738788640497,-500.0,0.00013698,2]
[351787141,1738788640506,-500.0,0.00013698,2]
[351787143,1738788640516,-505.7492854,0.00013698,2]
[351787145,1738788640525,-1424.28,0.00013698,2]
[351787147,1738788640534,-500.0,0.00013698,2]
[351787149,1738788640545,-1000.0,0.00013698,2]
[351787151,1738788640554,-500.0,0.00013698,2]
[351787153,1738788640563,-658.96,0.00013698,2]
[351787155,1738788640572,-500.0,0.00013698,2]
[351787157,1738788640581,-811.96,0.00013698,2]
[351787159,1738788640591,-500.0,0.00013698,2]
[351787161,1738788640600,-500.0,0.00013698,2]
[351787163,1738788640609,-667.92,0.00013698,2]
[351787165,1738788640619,-500.0,0.00013698,2]
[351787167,1738788640629,-597.13142421,0.00013698,2]
[351787169,1738788640639,-687.26,0.00013698,2]
[351787171,1738788640648,-500.0,0.00013698,2]
[351787173,1738788640657,-500.0,0.00013698,2]
[351787174,1738788640666,-500.0,0.00013698,2]
[351787177,1738788640676,-500.0,0.00013698,2]
[351787179,1738788640686,-500.0,0.00013698,2]
[351787181,1738788640695,-500.0,0.00013698,2]
[351787183,1738788640705,-1205.0,0.00013698,2]
[351787185,1738788640714,-1567.81,0.00013698,2]
[351787186,1738788640731,-500.0,0.00013698,2]
[351787189,1738788640741,-1036.56,0.00013698,2]
[351787191,1738788640750,-500.0,0.00013698,2]
[351787193,1738788640759,-1263.91,0.00013698,2]
[351787194,1738788640769,-500.0,0.00013698,2]
[351787197,1738788640779,-188.0,0.00013698,2]
[351787198,1738788640788,-500.0,0.00013698,2]
[351787200,1738788640798,-460.53401954,0.00013698,2]
[351787202,1738788640807,-500.0,0.00013698,2]
[351787204,1738788640817,-500.0,0.00013698,2]
[351787206,1738788640827,-500.0,0.00013698,2]
[351787208,1738788640838,-500.0,0.00013698,2]
[351787210,1738788640847,-500.0,0.00013698,2]
[351787213,1738788640858,-500.0,0.00013698,2]
[351787215,1738788640867,-500.0,0.00013698,2]
[351787217,1738788640877,-596.09650772,0.00013698,2]
[351787219,1738788640887,-995.41,0.00013698,2]
[351787221,1738788640897,-2254.92,0.00013698,2]
[351787222,1738788640908,-500.0,0.00013698,2]
[351787224,1738788640919,-832.6,0.00013698,2]
[351787226,1738788640930,-1191.3,0.00013698,2]
[351787228,1738788640940,-503.49486909,0.00013698,2]
[351787231,1738788640950,-500.0,0.00013698,2]
[351787232,1738788640960,-500.0,0.00013698,2]
[351787235,1738788640969,-500.0,0.00013698,2]
[351787236,1738788640982,-777.71,0.00013698,2]
[351787238,1738788640992,-500.0,0.00013698,2]
[351787241,1738788641002,-500.0,0.00013698,2]
[351787243,1738788641011,-500.0,0.00013698,2]
[351787245,1738788641020,-673.97,0.00013698,2]
[351787246,1738788641030,-500.0,0.00013698,2]
[351787248,1738788641039,-500.0,0.00013698,2]
[351787251,1738788641050,-500.0,0.00013698,2]
[351787253,1738788641059,-505.19265801,0.00013698,2]
[351787255,1738788641069,-3664.51,0.00013698,2]
[351787257,1738788641079,-551.85,0.00013698,2]
[351787259,1738788641089,-500.0,0.00013698,2]
[351787261,1738788641098,-300.0,0.00013698,2]
[351787263,1738788641108,-500.0,0.00013698,2]
[351787265,1738788641117,-500.0,0.00013698,2]
[351787267,1738788641127,-500.0,0.00013698,2]
[351787269,1738788641137,-503.16944459,0.00013698,2]
[351787271,1738788641146,-500.0,0.00013698,2]
[351787273,1738788641156,-528.71,0.00013698,2]
[351787275,1738788641165,-500.0,0.00013698,2]
[351787277,1738788641174,-500.0,0.00013698,2]
[351787279,1738788641183,-1701.5,0.00013698,2]
[351787281,1738788641193,-3775.22,0.00013698,2]
[351787283,1738788641202,-500.0,0.00013698,2]
[351787285,1738788641211,-500.0,0.00013698,2]
[351787286,1738788641220,-500.0,0.00013698,2]
[351787288,1738788641230,-1334.63,0.00013698,2]
[351787291,1738788641240,-500.0,0.00013698,2]
[351787293,1738788641249,-500.0,0.00013698,2]
[351787294,1738788641259,-500.0,0.00013698,2]
[351787296,1738788641268,-500.0,0.00013698,2]
[351787298,1738788641277,-500.0,0.00013698,2]
[351787300,1738788641286,-500.0,0.00013698,2]
[351787303,1738788641295,-500.0,0.00013698,2]
[351787304,1738788641305,-691.84,0.00013698,2]
[351787306,1738788641314,-500.0,0.00013698,2]
[351787308,1738788641324,-500.0,0.00013698,2]
[351787311,1738788641333,-500.0,0.00013698,2]
[351787313,1738788641343,-439.00348576,0.00013698,2]
[351787315,1738788641352,-516.34,0.00013698,2]
[351787317,1738788641361,-658.65,0.00013698,2]
[351787319,1738788641371,-500.0,0.00013698,2]
[351787320,1738788641380,-500.0,0.00013698,2]
[351787323,1738788641390,-500.0,0.00013698,2]
[351787325,1738788641400,-500.0,0.00013698,2]
[351787326,1738788641410,-500.0,0.00013698,2]
[351787328,1738788641419,-500.0,0.00013698,2]
[351787331,1738788641430,-500.0,0.00013698,2]
[351787333,1738788641440,-515.29609466,0.00013698,2]
[351787335,1738788641450,-500.0,0.00013698,2]
[351787337,1738788641460,-500.0,0.00013698,2]
[351787339,1738788641470,-1331.76,0.00013698,2]
[351787340,1738788641480,-500.0,0.00013698,2]
[351787343,1738788641493,-500.0,0.00013698,2]
[351787345,1738788641502,-500.0,0.00013698,2]